Cogmind - Beta 16 *** ADVENTURER MODE // 2026.01.13 @ 12:05:29 Player: MrZloHex Result: Destroyed by W9-43O(R) with Subdweller Laser Performance ------------- Evolutions (0) 0 Regions Visited (2) 400 Robots Destroyed (14) 70 Value Destroyed (341) 341 Prototype IDs (0) 0 Alien Tech Used (0) 0 Bonus (-31) -31 TOTAL SCORE: 780 Bonus ------- Friendly Fire -31 Cogmind --------- Core Integrity 0/250 Matter 285/300 Energy 99/100 System Corruption 0% Temperature Cool (6) Movement Core (50) Location -10/Subcaves Parts ------- > --- POWER (1) -------- (None) > --- PROPULSION (2) --- (None) > --- UTILITY (2) ------ Visual Processing Unit Targeting Computer > --- WEAPON (2) ------- Medium Laser > --- INVENTORY (5) ---- Light Ion Engine Subdweller Power Source Peak State ------------ > --- POWER ------------ Ion Engine > --- PROPULSION ------- Aluminum Leg Aluminum Leg > --- UTILITY ---------- Improved Heat Sink Small Storage Unit > --- WEAPON ----------- EM Pulse Gun Assault Rifle > --- INVENTORY -------- Light Ion Engine Light Ion Engine Aluminum Leg Aluminum Leg Medium Laser [Rating: 9] Favorites ----------- Power Light Ion Engine Engine Light Ion Engine Propulsion Aluminum Leg Leg Aluminum Leg Flight Unit Flight Unit Utility Small Storage Unit Device Improved Heat Sink Storage Small Storage Unit Processor Targeting Computer Weapon Assault Rifle Energy Gun EM Pulse Gun Ballistic Gun Assault Rifle Build | -11 -10 -10 ------- Run | Yrd Mat Sub Slots Evolved . | . . . Power . | . . . Propulsion . | . . . Utility . | . . . Weapon . | . . . Parts Attached 19 | 6 9 4 Power 5 | 1 2 2 Engine 5 | 1 2 2 Core . | . . . Reactor . | . . . Propulsion 6 | 2 4 . Treads . | . . . Leg 4 | 2 2 . Wheel . | . . . Hover . | . . . Flight 2 | . 2 . Utility 4 | 1 3 . Device 1 | . 1 . Storage 1 | 1 . . Processor 2 | . 2 . Hackware . | . . . Protection . | . . . Artifact . | . . . Weapon 4 | 2 . 2 Energy Gun 2 | 1 . 1 Energy Cannon . | . . . Ballistic Gun 2 | 1 . 1 Ballistic Cannon . | . . . Launcher . | . . . Special Weapon . | . . . Impact Weapon . | . . . Slashing Weapon . | . . . Piercing Weapon . | . . . Special Melee Weapon . | . . . Unidentified Prototypes . | . . . Parts Lost 6 | . . 6 Power 1 | . . 1 Propulsion 2 | . . 2 Utility . | . . . Weapon 3 | . . 3 Highest Loss Streak 6 | . . 6 To Critical Strikes . | . . . Average Backups 3 | 1 3 2 Power 1 | . 1 1 Propulsion . | . 1 . Utility . | . . . Weapon . | . 1 . Tool/Special . | . . . Unused Backups . | . . . Power . | . . . Propulsion . | . . . Utility . | . . . Weapon . | . . . Tool/Special . | . . . Average Slot Usage (%) 92 | . 90 97 Engine 13 | . 14 12 Leg 18 | . 23 . Flight 9 | . 3 26 Device 1 | . 1 . Storage 8 | . 11 . Processor 11 | . 6 28 Energy Gun 14 | . 14 14 Ballistic Gun 14 | . 14 14 Peak Build Rating 9 | 6 9 9 Average Rating 6 | 4 6 7 On Entrance 4 | . 6 8 Avg Prop Armor Cover (%) . | . . . Naked Turns . | . . . Heaviest Build 15 | 12 15 7 Greatest Support 20 | 20 20 8 Greatest Overweight (x) 3 | 2 3 1 Average Overweight (x) . | . . . Largest Inventory Capacity 8 | 8 8 5 Average Capacity 6 | 6 7 5 Most Carried 7 | 2 7 3 Average Carried 3 | 1 3 2 Final Capacity 8 | 8 5 5 Final Carried 2 | 2 2 2 Class Distribution -------------------- 100% | Mutant Dominant Class ---------------- Mutant | -10/Materials Mutant | -10/Subcaves Resources | -11 -10 -10 ----------- Run | Yrd Mat Sub Matter Collected 500 | 225 234 41 Remotely . | . . . Salvage Created 418 | . 383 35 Parts 28 | . 27 1 Haulers Intercepted . | . . . Recyclers Shooed . | . . . Parts Field Recycled . | . . . Retrieved Matter . | . . . Parts Self-Destructed . | . . . Prevented . | . . . Parts Restored . | . . . Kills | -11 -10 -10 ------- Run | Yrd Mat Sub Combat Hostiles Destroyed 10 | . 8 2 Guns 9 | . 7 2 AOE 1 | . 1 . Classes Destroyed 6 | . 5 1 Worker 1 | . 1 . Builder 1 | . 1 . Watcher 2 | . 2 . Swarmer 3 | . 3 . Grunt 5 | . 5 . Subdweller 2 | . . 2 Best Kill Streak 5 | . 5 2 Combat Bots Only 4 | . 4 2 Max Kills in Single Turn 2 | . 2 1 Gunslinging . | . . . Exploded 1 | . 1 . Melee . | . . . Uniques/NPCs Destroyed . | . . . Combat | -11 -10 -10 -------- Run | Yrd Mat Sub Hostile Shots Fired 110 | . 70 40 Missed 46 | . 24 22 Hits 64 | . 46 18 Projectile 64 | . 46 18 AOE 8 | . . 8 Critical Strikes 1 | . . 1 Damage Taken 794 | . 351 443 Core 251 | . 45 206 Absorbed by Shields . | . . . Ignored by Resistances 239 | . 113 126 Core Remaining (%) 100 | 100 . . Volleys Fired 49 | . 33 16 Largest 2 | . 2 2 Hottest 75 | . 60 75 Shots Fired 96 | . 66 30 Gun 96 | . 66 30 Cannon . | . . . Launcher . | . . . Special . | . . . Kinetic 47 | . 33 14 Thermal 7 | . . 7 Explosive . | . . . Electromagnetic 42 | . 33 9 Robot Hit Streak 16 | . 15 16 Robot Miss Streak 4 | . 4 1 Penetration Max . | . . . Secondary Targets 4 | . 2 2 Max Gunslinging Chain 1 | . 1 1 Shots Hit Robots 73 | . 45 28 Core Hits 27 | . 19 8 Critical Kills . | . . . Critical Parts Destroyed . | . . . Critical Strikes 1 | . . 1 Burn 1 | . . 1 Melee Attacks . | . . . Impact . | . . . Slashing . | . . . Piercing . | . . . Sneak Attacks . | . . . Combat Hostiles . | . . . Follow-up Attacks . | . . . Damage Inflicted 1025 | . 673 352 Guns 950 | . 598 352 Cannons . | . . . Explosions 75 | . 75 . Melee . | . . . Ramming . | . . . Kinetic 438 | . 279 159 Thermal 165 | . 75 90 Explosive . | . . . Electromagnetic 422 | . 319 103 Impact . | . . . Slashing . | . . . Piercing . | . . . Highest Corruption . | . . . Average Corruption . | . . . Corruption Purged . | . . . Corruption Blocked . | . . . Overload Shots . | . . . Overflow Damage . | . . . Projectiles . | . . . Explosions . | . . . Melee . | . . . Knockbacks . | . . . Impact . | . . . Kinetic . | . . . Secondary . | . . . Self-Inflicted Damage 18 | . 18 . Shots 1 | . 1 . Rammed . | . . . Targets Rammed . | . . . Kicked . | . . . Crushed . | . . . Highest Temperature 51 | . 51 10 Average Temperature 18 | . 19 6 Received Heat Transfer 228 | . 144 84 Siege Activations . | . . . Martial Activations . | . . . Shielding Activations . | . . . Robots Disrupted . | . . . Combat Hostiles . | . . . Robots Corrupted . | . . . Combat Hostiles . | . . . Parts Fried . | . . . Impact Corruptions . | . . . Robots Melted . | . . . Combat Hostiles . | . . . Parts Melted . | . . . Heat Transferred 433 | . 100 333 Parts Sabotaged . | . . . Parts Stolen . | . . . Parts Stripped . | . . . Power Chain Reactions 1 | . 1 . Alert | -11 -10 -10 ------- Run | Yrd Mat Sub Maximum Alert Level 1 | . 1 . Low Security (%) 89 | 100 88 . Level 1 10 | . 11 . Level 2 . | . . . Level 3 . | . . . Level 4 . | . . . Level 5 . | . . . High Security . | . . . Max Security . | . . . Peak Influence 241 | . 241 . Initial . | . . . Average 63 | . 72 . Influence Increases 374 | . 374 . Destroy 0b10 Robot/C 160 | . 160 . Destroy 0b10 Robot/NC 20 | . 20 . Destroy Leader 44 | . 44 . Successful Hack 3 | . 3 . Disable Machine 9 | . 9 . Destroy Structure 3 | . 3 . Partial Spotted 15 | . 15 . Lose Combat Pursuer 120 | . 120 . Influence Decreases 374 | . 133 241 Entered New Map 133 | . . 133 Time Decay 183 | . 133 50 Lost Part 58 | . . 58 Squads Dispatched 3 | . 3 . Investigation 3 | . 3 . Extermination . | . . . Reinforcement . | . . . Assault . | . . . Garrison . | . . . Intercept . | . . . Searches Triggered . | . . . Construction Impeded . | . . . Haulers Reinforced . | . . . Active Scanning Responses . | . . . Cargo Convoy Interrupts . | . . . Stealth | -11 -10 -10 --------- Run | Yrd Mat Sub Distress Signals . | . . . Communications Jammed . | . . . Distress Signals . | . . . Times Spotted 33 | . 22 11 Peak Tracking Total 7 | . 7 7 Tactical Retreats 4 | . 4 . Traps | -11 -10 -10 ------- Run | Yrd Mat Sub Traps Triggered 2 | . 2 . Indirectly . | . . . Trap Hack Attempts . | . . . Triggered . | . . . Disarmed . | . . . Reprogrammed . | . . . Reused . | . . . Traps Extracted . | . . . Installed . | . . . Triggered . | . . . Machines | -11 -10 -10 ---------- Run | Yrd Mat Sub Machines Disabled 1 | . 1 . Max in Single Turn 1 | . 1 . Machines Repaired . | . . . Machines Dismantled . | . . . Machines Sabotaged . | . . . Overloaded Fab Kills . | . . . Hacking | -11 -10 -10 --------- Run | Yrd Mat Sub Machines Accessed 3 | . 3 . Terminals 3 | . 3 . Fabricators . | . . . Repair Stations . | . . . Recycling Units . | . . . Scanalyzers . | . . . Garrison Access . | . . . Total Hacks 12 | . 12 . Successful 8 | . 8 . Failed 4 | . 4 . Catastrophic . | . . . Database Lockouts . | . . . Manual 3 | . 3 . Terminals 12 | . 12 . Fabricators . | . . . Repair Stations . | . . . Recycling Units . | . . . Scanalyzers . | . . . Garrison Access . | . . . Terminal Hacks 8 | . 8 . Record 6 | . 6 . Recall Investigation 1 | . 1 . Zone Layout 1 | . 1 . Fabricator Hacks . | . . . Repair Station Hacks . | . . . Recycling Unit Hacks . | . . . Scanalyzer . | . . . Garrison Access Hacks . | . . . Unauthorized Hacks . | . . . Terminals . | . . . Fabricators . | . . . Repair Stations . | . . . Recycling Units . | . . . Scanalyzers . | . . . Garrison Access . | . . . Data Cores Recovered . | . . . Used . | . . . Hacking Detections 3 | . 3 . Full Trace Events 1 | . 1 . Feedback Events . | . . . Feedback Blocked . | . . . Robot Schematics Acquired . | . . . Robots Built . | . . . Authchips . | . . . Time . | . . . Total Robot Build Rating . | . . . Part Schematics Acquired . | . . . Parts Built . | . . . Authchips . | . . . Time . | . . . Total Part Build Rating . | . . . Part Studies Acquired . | . . . Parts Repaired . | . . . Time . | . . . Parts Recycled . | . . . Recycled Matter . | . . . Retrieved Matter . | . . . Retrieved Components . | . . . Parts Scanalyzed . | . . . Part Schematics Acquired . | . . . Parts Damaged . | . . . Bothacking | -11 -10 -10 ------------ Run | Yrd Mat Sub Used RIF Installer . | . . . Robots Hacked . | . . . Non-combat . | . . . Combat . | . . . Robot Hacks Applied . | . . . Relay Couplers Released . | . . . Fabnet Peak Effective % . | . . . Robots Rewired . | . . . Allies Hacked . | . . . Hacks Repelled . | . . . Allies | -11 -10 -10 -------- Run | Yrd Mat Sub Total Allies . | . . . Largest Group . | . . . Highest-Rated Group . | . . . Highest-Rated Ally . | . . . Total Orders . | . . . Ally Attacks . | . . . Total Damage . | . . . Kills . | . . . Allies Corrupted . | . . . Allies Melted . | . . . Intel | -11 -10 -10 ------- Run | Yrd Mat Sub Active Infowar (turns) 138 | . 21 117 Optics 138 | . 21 117 Robot Analysis Total . | . . . Derelict Logs Recovered . | . . . Drone Launches . | . . . Drone Recoveries . | . . . Exploration | -11 -10 -10 ------------- Run | Yrd Mat Sub Turns Passed 536 | 49 370 117 Spaces Moved 466 | 35 259 172 Core 20 | 11 . 9 Treads . | . . . Legs 194 | 24 170 . Wheels . | . . . Hover . | . . . Flight 252 | . 89 163 Fastest Speed 37 | 50 37 37 Average Speed 73 | 109 92 38 Slowest Speed 280 | 150 280 100 Overloaded Moves . | . . . Propulsion Burnouts . | . . . Robots Hopped 1 | . 1 . Potential Cave-ins . | . . . Cave-ins Triggered . | . . . Exploration Rate (%) 20 | 3 46 13 Regions Visited 2 Branch Regions 1 Pre-discovered Areas . | . . . Known Exits Taken . | . . . Unknown Exits Taken 2 | 1 1 . Scrap Searched 1 | . . 1 Spaces Dug . | . . . Terrain Destroyed 2 | . 2 . Melee . | . . . Projectile . | . . . AOE 2 | . 2 . Terrain Rammed . | . . . Walls Destroyed . | . . . Machines Disabled . | . . . Actions | -11 -10 -10 --------- Run | Yrd Mat Sub Total 556 | 42 322 192 Wait 12 | . 12 . Move 462 | 34 256 172 Hop 1 | . 1 . Pick Up 3 | 2 1 . Fast Attach 13 | 6 6 1 Attach 1 | . . 1 Detach 2 | . 2 . Swap 6 | . 4 2 Drop 7 | . 7 . Fire 49 | . 33 16 Melee . | . . . Ram . | . . . Kick . | . . . Crush . | . . . Escape Stasis . | . . . Rewire . | . . . Trap . | . . . Miscellaneous . | . . . Route ------- -11/Scrapyard -10/Materials (discovered 2 exits: [*Min] / [*Sub]) -10/Subcaves (discovered 1 exit: [Scr]) History --------- Turn | Location | Event 11 | -11/Scrapyard | Discovered new exit (range 15) 50 | -11/Scrapyard | Entered Materials 123 | -10/Materials | Discovered new exit (range 14) 319 | -10/Materials | Build established: Mutant 403 | -10/Materials | Discovered new exit (range 9) 420 | -10/Materials | Entered Subcaves 421 | -10/Subcaves | Approached by a straggling Scientist 495 | -10/Subcaves | Ambushed by swarm of Subdwellers 495 | -10/Subcaves | Ambushed by Subdwellers from Twisted Machinery 495 | -10/Subcaves | Ambushed by Subdwellers from Twisted Machinery 495 | -10/Subcaves | Ambushed by Subdwellers from Twisted Machinery 517 | -10/Subcaves | Core integrity fell below 50% 533 | -10/Subcaves | Core integrity fell below 20% 537 | -10/Subcaves | Destroyed by W9-43O(R) with Subdweller Laser Last Messages --------------- 00506_ Q6-WCU(R) suffers critical hit (Destroy). 00506_ Q6-WCU(R) knocked back. 00508_ Acquired Battle Rifle. 00508_ GT-7XS(h) destroyed. 00509_ 3C-MYT(R) destroyed. 00509_ Switching to secondary target: W9-43O(R). 00513_ Q6-WCU(R) affixes Scrap Shield Fragment to Scrap Shield. 00515_ 3F-9C1(R) affixes Scrap Shield Fragment to Scrap Shield. 00515_ 3F-9C1(R) destroyed. 00515_ Switching to secondary target: W9-43O(R). 00517_ CT-WB9(R) emerges from the Twisted Machinery. 00517_ Subatomizers dissect the Disposable Heat Sink. 00518_ 9Z-5ON(g) destroyed. SM-6AP(c): "We're getting close, I can feel it." 00524_ Lgt. Ion Engine destroyed. 00528_ Flight Unit destroyed. 00530_ Subatomizers dissect the Disposable Heat Sink, destroying it. 00530_ Flight Unit destroyed. 00532_ Battle Rifle destroyed. 00535_ Q6-WCU(R) suffers critical hit (Burn). Map ----- +----------------------------------------------------+ | ?????????###""" "###?????????????????????????? | | ?????????# " "##????????????????????????? | | ??????????# "###??????????????????????? | | ?????????## $$ ""#??????????????????????? | | ?????????#" $ ##??????????????????????? | | ?????????#" % $ [ "#??????????????????????? | | ??????????# & "#??????????????????????? | | ??????????#" % ! #??????????????????????? | | ??????????# " =%&= ! ##??????????????????????? | | ??????????##" % #??????????????????????? | | ???########## ! R " #??##?###??????????????? | | ???# """ R#;#?# ## # #????????????? | | ???# "" ; ;## ??????????????? | | ?????# RR ???????????#### | | ?????# "" #;; #??????????????# # | | ????## #" #; ##????????????## | | ???## #" % #???????????## ## | | #### #";; #???????##### #### | | # ### #???????# # ##??? | | # ;#######???## ##???? | | ##### ##??# #????? | | ## ##### #????? | | ## ##????? | | ###### ; # ####?????? | | ##??## "" ; #### ######????????? | | #???# ###"#@ ;#?## #?????????????? | | > ##??## ## ##?## ###??# #?????????????? | | ##??# ## #??# ##????## #????????????? | | ##?## ##?# ##??????# #???????????? | | #??### #??# #??????? #??????????? | | ##????## ### #???????# ?????????? | | ########## ##???????# #????????? | | # # # # #????????? ##????????? | | ## ####????????? #####?????????? | | ## #########???????????? #?????????????? | | ?# # # ####???????????????????? ?????????????? | | ?##########??????????????????????? ?????????????? | | ??????????????????????????????????##?????????????? | | ?????????????????????????????????????????????????? | | ?????????????????????????????????????????????????? | | ?????????????????????????????????????????????????? | | ?????????????????????????????????????????????????? | | ?????????????????????????????????????????????????? | | ?????????????????????????????????????????????????? | | ?????????????????????????????????????????????????? | | ?????????????????????????????????????????????????? | | ?????????????????????????????????????????????????? | | ?????????????????????????????????????????????????? | | ?????????????????????????????????????????????????? | | ?????????????????????????????????????????????????? | +----------------------------------------------------+ Best States ------------- Heat Dissipation 39 Energy Generation 10 Energy Capacity 250 Matter Stores 300 Matter Capacity 300 Sight Range 18 Terrain Scan Density 10 Resistance: KI 20 Resistance: TH 20 Resistance: EX 20 Resistance: EM 20 Resistance: I 20 Resistance: S 20 Resistance: P 20 Evasion (%) 62 Targeting Accuracy 5 Offensive Hacking 10 Item Schematics ----------------- None Robot Schematics ------------------ None Fabricated ------------ Nothing Repaired ---------- Nothing Studied --------- None Alien Tech Used ----------------- None Achievements -------------- None Challenges ------------ None Game ------ Seed ShockboltLightStick Manual? 0 Play Time 00:14:42 Cumulative 16.1 hours Start 2026.01.13 @ 11:50:34 End 2026.01.13 @ 12:05:29 Sessions 1 Manual Loads 0 Difficulty Adventurer Special Mode None Game No. 15 Rogue 0 Adventurer 15 Explorer 0 Win Type - Total 0 Types 0/0/0/0/0/0/0/0/0/0 Lore% 10 Gallery% 14 Achievement% 16 Wizard Run 0 Options --------- Layout 0 ASCII 0 Keyboard 0 Movement Arrows Keybinds 0 Fullscreen 1 Font 16/Tamsyn Map View 70x52 Zoom Use 65% Tactical HUD 1 Map Filters NONE Filters NONE Steam 1 RUN: 7e29db50-7fdc-45aa-99a0-80ec7e5fb164